Cogmind - Beta 12 @@@ ROGUE MODE // 2023.03.15 @ 09:56:01 Player: kawyua Result: Destroyed by Y-45 Defender with Heavy Assault Rifle Performance ------------- Evolutions (1) 500 Regions Visited (2) 400 Robots Destroyed (35) 175 Value Destroyed (755) 755 Prototype IDs (2) 40 Alien Tech Used (0) 0 Bonus (0) 0 TOTAL SCORE: 1870 Bonus ------- None Cogmind --------- Core Integrity 0/400 Matter 290/300 Energy 98/100 System Corruption 0% Temperature Cool (10) Movement Treading (240) Ox1 Location -9/Materials Parts ------- > --- POWER (1) -------- (None) > --- PROPULSION (3) --- Light Treads Aluminum Leg > --- UTILITY (3) ------ Large Storage Unit Sensor Array Signal Interpreter > --- WEAPON (2) ------- Light Assault Rifle Heavy Assault Rifle > --- INVENTORY (15) --- Flight Unit Flight Unit Flight Unit Flight Unit Heat Sink Structural Scanner Structural Scanner Terrain Scanner Terrain Scan Processor Propulsion Shielding Light Armor Plating Hardened Medium Armor Plating Hardened Medium Armor Plating Hardened Medium Armor Plating Small Laser Peak State ------------ > --- POWER ------------ Improved Ion Engine > --- PROPULSION ------- Aluminum Leg Aluminum Leg Aluminum Leg > --- UTILITY ---------- Large Storage Unit Sensor Array Signal Interpreter > --- WEAPON ----------- Medium Laser Small Laser > --- INVENTORY -------- Ion Engine Aluminum Leg Aluminum Leg Aluminum Leg Aluminum Leg Compact Wheel Flight Unit Structural Scanner Structural Scanner Propulsion Shielding Medium Armor Plating Small Laser Light Assault Rifle Light Assault Rifle Heavy Assault Rifle [Rating: 11] Favorites ----------- Power Ion Engine Engine Ion Engine Propulsion Light Treads Treads Light Treads Leg Aluminum Leg Wheel Compact Wheel Utility Large Storage Unit Device Sensor Array Storage Large Storage Unit Processor Signal Interpreter Protection Medium Armor Plating Weapon Medium Laser Energy Gun Medium Laser Ballistic Gun Light Assault Rifle Ballistic Cannon Light Cannon Build | -11 -10 -9 ------- Run | Jun Mat Mat Slots Evolved 2 | . . 2 Power . | . . . Propulsion 1 | . . 1 Utility 1 | . . 1 Weapon . | . . . Parts Attached 38 | 7 6 25 Power 6 | 1 1 4 Engine 6 | 1 1 4 Core . | . . . Reactor . | . . . Propulsion 15 | 2 2 11 Treads 4 | 2 1 1 Leg 8 | . . 8 Wheel 3 | . 1 2 Hover . | . . . Flight . | . . . Utility 7 | 1 2 4 Device 2 | . . 2 Storage 2 | 1 1 . Processor 1 | . 1 . Hackware . | . . . Protection 2 | . . 2 Artifact . | . . . Weapon 10 | 3 1 6 Energy Gun 3 | 2 . 1 Energy Cannon . | . . . Ballistic Gun 6 | 1 . 5 Ballistic Cannon 1 | . 1 . Launcher . | . . . Special Weapon . | . . . Impact Weapon . | . . . Slashing Weapon . | . . . Piercing Weapon . | . . . Special Melee Weapon . | . . . Unidentified Prototypes . | . . . Parts Lost 18 | . 1 17 Power 3 | . . 3 Propulsion 8 | . . 8 Utility 1 | . . 1 Weapon 6 | . 1 5 Highest Loss Streak 6 | . 1 6 To Critical Strikes . | . . . Average Slot Usage (%) 90 | . 93 88 Engine 10 | . 14 6 Treads 14 | . 25 4 Leg 11 | . . 21 Wheel 1 | . 1 1 Device 5 | . . 9 Storage 12 | . 14 11 Processor 9 | . 8 11 Energy Gun 10 | . 14 7 Ballistic Gun 8 | . 4 10 Ballistic Cannon 5 | . 9 2 Naked Turns . | . . . Heaviest Build 36 | 14 30 36 Greatest Support 40 | 40 40 30 Greatest Overweight (x) 9 | . 9 3 Average Overweight (x) . | . . . Largest Inventory Capacity 15 | 8 15 15 Average Capacity 14 | 7 14 15 Most Carried 15 | 6 14 15 Average Carried 11 | 3 11 12 Final Capacity 15 | 8 15 15 Final Carried 15 | 6 13 15 Class Distribution -------------------- 74% | Mutant 25% | Scavenger-Mutant Dominant Class ---------------- Mutant | -10/Materials Mutant | -9/Materials Resources | -11 -10 -9 ----------- Run | Jun Mat Mat Matter Collected 843 | 219 255 369 Remotely . | . . . Salvage Created 1082 | . 350 732 Parts 81 | . 25 56 Haulers Intercepted 1 | . 1 . Recyclers Shooed 1 | . . 1 Parts Field Recycled . | . . . Retrieved Matter . | . . . Parts Self-Destructed . | . . . Prevented . | . . . Kills | -11 -10 -9 ------- Run | Jun Mat Mat Combat Hostiles Destroyed 27 | . 10 17 Guns 19 | . 5 14 Cannons 8 | . 5 3 Classes Destroyed 8 | . 4 4 Worker 2 | . 1 1 Builder 2 | . . 2 Hauler 1 | . 1 . Recycler 2 | . . 2 Watcher 1 | . . 1 Swarmer 12 | . 3 9 Grunt 11 | . 7 4 Sentry 4 | . . 4 Best Kill Streak 9 | . 4 9 Combat Bots Only 6 | . 4 6 Max Kills in Single Turn 2 | . 2 2 Gunslinging . | . . . Exploded . | . . . Melee . | . . . Uniques/NPCs Destroyed . | . . . Combat | -11 -10 -9 -------- Run | Jun Mat Mat Damage Taken 2438 | . 619 1819 Core 515 | . 106 409 Absorbed by Shields . | . . . Core Remaining (%) 78 | 100 57 . Volleys Fired 124 | . 42 82 Largest 2 | . 2 2 Hottest 90 | . 85 90 Shots Fired 223 | . 72 151 Gun 181 | . 45 136 Cannon 42 | . 27 15 Launcher . | . . . Special . | . . . Kinetic 140 | . 42 98 Thermal 83 | . 30 53 Explosive . | . . . Electromagnetic . | . . . Robot Hit Streak 10 | . 8 10 Robot Miss Streak 5 | . 5 4 Penetration Max . | . . . Secondary Targets 4 | . 1 3 Max Gunslinging Chain 1 | . 1 1 Shots Hit Robots 138 | . 42 96 Core Hits 56 | . 16 40 Critical Kills . | . . . Critical Parts Destroyed 2 | . 1 1 Critical Strikes 2 | . 1 1 Destroy 2 | . 1 1 Melee Attacks . | . . . Impact . | . . . Slashing . | . . . Piercing . | . . . Sneak Attacks . | . . . Combat Hostiles . | . . . Follow-up Attacks . | . . . Damage Inflicted 1753 | . 637 1116 Guns 1323 | . 363 960 Cannons 427 | . 274 153 Explosions . | . . . Melee . | . . . Ramming 3 | . . 3 Kinetic 1097 | . 400 697 Thermal 653 | . 237 416 Explosive . | . . . Electromagnetic . | . . . Impact . | . . . Slashing . | . . . Piercing . | . . . Highest Corruption . | . . . Average Corruption . | . . . Corruption Purged . | . . . Corruption Blocked . | . . . Overload Shots . | . . . Overflow Damage . | . . . Projectiles . | . . . Explosions . | . . . Melee . | . . . Knockbacks 3 | . 1 2 Impact . | . . . Kinetic 3 | . 1 2 Secondary . | . . . Self-Inflicted Damage . | . . . Shots . | . . . Rammed . | . . . Targets Rammed 1 | . . 1 Kicked 1 | . . 1 Crushed . | . . . Highest Temperature 253 | . 253 132 Average Temperature 58 | . 96 29 Received Heat Transfer 753 | . 312 441 Effects 3 | . 3 . Interference 3 | . 3 . Siege Activations . | . . . Robots Corrupted . | . . . Combat Hostiles . | . . . Parts Fried . | . . . Impact Corruptions . | . . . Robots Melted . | . . . Combat Hostiles . | . . . Parts Melted 2 | . . 2 Heat Transferred 1854 | . 703 1151 Parts Sabotaged . | . . . Parts Stolen . | . . . Parts Stripped . | . . . Power Chain Reactions . | . . . Missiles Intercepted . | . . . Alert | -11 -10 -9 ------- Run | Jun Mat Mat Peak Influence 258 | . 202 258 Initial . | . . . Average 71 | . 45 97 Maximum Alert Level 1 | . 1 1 Low Security (%) 90 | 100 95 85 Level 1 9 | . 4 14 Level 2 . | . . . Level 3 . | . . . Level 4 . | . . . Level 5 . | . . . High Security . | . . . Max Security . | . . . Squads Dispatched 2 | . 2 . Investigation . | . . . Extermination . | . . . Reinforcement 2 | . 2 . Assault . | . . . Garrison . | . . . Intercept . | . . . Searches Triggered . | . . . Construction Impeded . | . . . Haulers Reinforced . | . . . Active Scanning Responses . | . . . Cargo Convoy Interrupts . | . . . Stealth | -11 -10 -9 --------- Run | Jun Mat Mat Distress Signals 3 | . 1 2 Communications Jammed . | . . . Distress Signals . | . . . Times Spotted 52 | . 19 33 Peak Tracking Total 10 | . 5 10 Tactical Retreats 2 | . . 2 Traps | -11 -10 -9 ------- Run | Jun Mat Mat Traps Triggered 1 | . 1 . Indirectly . | . . . Trap Hack Attempts . | . . . Triggered . | . . . Disarmed . | . . . Reprogrammed . | . . . Reused . | . . . Traps Extracted . | . . . Installed . | . . . Triggered . | . . . Machines | -11 -10 -9 ---------- Run | Jun Mat Mat Machines Disabled . | . . . Max in Single Turn . | . . . Machines Repaired . | . . . Machines Sabotaged . | . . . Overloaded Fab Kills . | . . . Hacking | -11 -10 -9 --------- Run | Jun Mat Mat Machines Accessed 7 | . 4 3 Terminals 7 | . 4 3 Fabricators . | . . . Repair Stations . | . . . Recycling Units . | . . . Scanalyzers . | . . . Garrison Access . | . . . Total Hacks 20 | . 10 10 Successful 7 | . 4 3 Failed 13 | . 6 7 Catastrophic 1 | . 1 . Database Lockouts . | . . . Manual 16 | . 8 8 Terminals 20 | . 10 10 Fabricators . | . . . Repair Stations . | . . . Recycling Units . | . . . Scanalyzers . | . . . Garrison Access . | . . . Terminal Hacks 5 | . 3 2 Part Schematic 1 | . 1 . Prototype ID Bank 1 | . . 1 Alert Level 1 | . 1 . Unreport Threat 1 | . . 1 Locate Traps 1 | . 1 . Fabricator Hacks . | . . . Repair Station Hacks . | . . . Recycling Unit Hacks . | . . . Scanalyzer . | . . . Garrison Access Hacks . | . . . Unauthorized Hacks 2 | . 1 1 Terminals 2 | . 1 1 Operators 2 | . 1 1 Fabricators . | . . . Repair Stations . | . . . Recycling Units . | . . . Scanalyzers . | . . . Garrison Access . | . . . Data Cores Recovered . | . . . Used . | . . . Hacking Detections 6 | . 3 3 Full Trace Events . | . . . Feedback Events . | . . . Feedback Blocked . | . . . Robot Schematics Acquired . | . . . Robots Built . | . . . Authchips . | . . . Time . | . . . Total Robot Build Rating . | . . . Part Schematics Acquired 1 | . 1 . Parts Built . | . . . Authchips . | . . . Time . | . . . Total Part Build Rating . | . . . Parts Repaired . | . . . Time . | . . . Parts Recycled . | . . . Recycled Matter . | . . . Retrieved Matter . | . . . Retrieved Components . | . . . Parts Scanalyzed . | . . . Part Schematics Acquired . | . . . Parts Damaged . | . . . Bothacking | -11 -10 -9 ------------ Run | Jun Mat Mat Used RIF Installer . | . . . Robots Hacked . | . . . Non-combat . | . . . Combat . | . . . Robot Hacks Applied . | . . . Relay Couplers Released . | . . . Fabnet Peak Effective % . | . . . Robots Rewired . | . . . Allies Hacked . | . . . Hacks Repelled . | . . . Allies | -11 -10 -9 -------- Run | Jun Mat Mat Total Allies . | . . . Largest Group . | . . . Highest-Rated Group . | . . . Highest-Rated Ally . | . . . Total Orders . | . . . Ally Attacks . | . . . Total Damage . | . . . Kills . | . . . Allies Corrupted . | . . . Allies Melted . | . . . Intel | -11 -10 -9 ------- Run | Jun Mat Mat Robot Analysis Total . | . . . Derelict Logs Recovered . | . . . Drone Launches . | . . . Drone Recoveries . | . . . Exploration | -11 -10 -9 ------------- Run | Jun Mat Mat Turns Passed 2018 | 74 867 1077 Spaces Moved 992 | 46 471 475 Core 17 | 16 1 . Treads 559 | 30 383 146 Legs 287 | . . 287 Wheels 129 | . 87 42 Hover . | . . . Flight . | . . . Fastest Speed 50 | 50 115 115 Average Speed 154 | 121 152 160 Slowest Speed 500 | 160 500 240 Overloaded Moves . | . . . Propulsion Burnouts . | . . . Robots Hopped . | . . . Cave-ins Triggered . | . . . Exploration Rate (%) 42 | 5 73 49 Regions Visited 2 Branch Regions . Pre-discovered Areas . | . . . Known Exits Taken 1 | . 1 . Unknown Exits Taken 1 | 1 . . Scrap Searched . | . . . Spaces Dug . | . . . Terrain Destroyed . | . . . Melee . | . . . Projectile . | . . . AOE . | . . . Terrain Rammed . | . . . Walls Destroyed . | . . . Machines Disabled . | . . . Actions | -11 -10 -9 --------- Run | Jun Mat Mat Total 1262 | 64 548 650 Wait 54 | . 13 41 Move 990 | 45 470 475 Hop . | . . . Pick Up 47 | 12 14 21 Fast Attach . | . . . Attach 27 | 6 4 17 Detach . | . . . Swap 11 | 1 2 8 Drop 8 | . 3 5 Fire 124 | . 42 82 Melee . | . . . Ram . | . . . Kick 1 | . . 1 Crush . | . . . Escape Stasis . | . . . Rewire . | . . . Trap . | . . . Miscellaneous . | . . . Route ------- -11/Junkyard -10/Materials (discovered 3 exits: *Mat / [*Min x2]) -9/Materials (discovered 1 exit: *Mat) History --------- Turn | Location | Event 10 | -11/Junkyard | Discovered new exit (range 16) 75 | -11/Junkyard | Entered Materials 262 | -10/Materials | Discovered new exit (range 14) 305 | -10/Materials | Build established: Mutant 334 | -10/Materials | Discovered new exit (range 7) 493 | -10/Materials | Identified exit to Materials 678 | -10/Materials | Discovered new exit (range 15) 942 | -10/Materials | Entered another Materials area 942 | -9/Materials | Evolved 2 slots: Propulsion x1, Utility x1 1229 | -9/Materials | Discovered new exit (range 13) 1242 | -9/Materials | Identified exit to Materials 1499 | -9/Materials | Core integrity fell below 50% 1519 | -9/Materials | Lost 6 parts (1p3n2w) 1573 | -9/Materials | Core integrity fell below 20% 1597 | -9/Materials | Lost 5 parts (3n2w) 1668 | -9/Materials | Lost 3 parts (1p1n1u) 2019 | -9/Materials | Destroyed by Y-45 Defender with Heavy Assault Rifle Last Messages --------------- 01694_ R-06 Scavenger collects Wheel. 01697_ R-06 Scavenger collects Lgt. Assault Rifle. 01698_ K-01 Serf collects debris. 01700_ Acquired 11 matter. 01701_ R-06 Scavenger collects Tractor Beam. 01711_ K-01 Serf collects debris. 01717_ Acquired 9 matter. 01729_ W-16 Scout destroyed. 01734_ Acquired 8 matter. 01735_ K-01 Serf collects debris. 01768_ Acquired Hrd. Medium Armor Plating. 01881_ Dropped Hvy. Assault Rifle. 01885_ Connecting with Terminal... >>Alert(Purge) Purged threat record, alert level lowered. 01991_ W-16 Scout sends out distress signal. 02005_ Dropped Structural Scanner. 02006_ Acquired Terrain Scanner. 02016_ R-06 Scavenger inserts Wheel into recycling unit. 02017_ Recycling unit begins recycling process. Map ----- +----------------------------------------------------+ | ???????????????????????# # #??# #??????? | | ???????????????????????#########?# #??# #??????? | | ??????????????????????##########?# #??# #??????? | | ??????????????????????# #?# #??# #??????? | | ??????????????????????# """ #?# #??# #??????? | | ??????????????????????# """ #?# #??# #??????? | | ??????????????????????# """ #?# #??# #??????? | | ??????????????????????# #?# #??# #??????? | | ??????????????????????# " #?# #??# #??????? | | ??????????????????????# T #?# #??# ######## | | ??????????????????????# " #?# #??# ##!! !! | | ??????????????????????# ### #??# ##!!! !! | | ?????????????????????##+####+### #??# ## | | ??????????????######## #??# ## | | ?????????+ #??# | | ??????????????######## #??# ######## | | ?????????????????????##Y######## #??# #??????? | | ????????????????????###/######?## #####+######## | | ????????????????????# ! #??# # # | | ????????????????????#! ][ #??# / = # | | ????????????????????# [[! #??# # %* # | | ????????????????????# [[! #??# # # | | ????????????????????# w ##?# %# # | | ????????????????????# [t #?# ############## | | ????????????????????# r ##?# ########### #? | | ????????????????????# "Y"@ #??# ## # #? | | ????????????????????# """ #?## ## # #? | | ????????????????????#####+###### # # #? | | ????????????????????? #% # ## | | ???????????????????????# T + % # # | | ???????????????????????# # %%% ! # ## | | ???????????????????????# ##### #=* % = # #? | | ???????????????????????# ????## ## %% % # # | | ??????????????????????# ?? ?????# ## !* *% *# ## | | ??????????????????????#?????????# ########+####? | | ????????????????????????????????# #?#### #*###? | | ???????????????????????????????## #????### ###? | | ???????????????????????????????# ##### # | | ???????????????????????????????# # | | ???????????????????????????????# / | | ???????????????????????????????# # | | ???????????????????????????????# ##### #[| | | ???????????????????????????????### #?????## ##?| | | ?????????????????????????????????#+???????# #??? | | ??????????????????????????????????????????# #### | | ??????????????????????????????????????????# | | ??????????????????????o???????????????????# #### | | ????????????????????????????????????????####+##### | | ????????????????????????????????????????# =% | | ????????????????????????????????????????# = | +----------------------------------------------------+ Best States ------------- Heat Dissipation 28 Energy Generation 12 Energy Capacity 265 Matter Stores 300 Matter Capacity 300 Sight Range 16 Robot Scan Range 14 Terrain Scan Density 10 Armor Coverage 225 Evasion (%) 55 Recoil Reduction 2 Item Schematics ----------------- ECM Suite | -10/Materials | Hacked Robot Schematics ------------------ None Fabricated ------------ Nothing Alien Tech Used ----------------- None Achievements -------------- None Challenges ------------ None Game ------ Seed MetafieldLayeredCalibrator Manual? 0 Play Time 00:16:58 Cumulative 74.3 hours Start 2023.03.15 @ 09:32:49 End 2023.03.15 @ 09:56:01 Sessions 1 Manual Loads 0 Difficulty Rogue Special Mode None Game No. 23 Rogue 23 Adventurer 0 Explorer 0 Win Type - Total 3 Types 3/0/0/0/0/0/0/0/0 Lore% 27 Gallery% 42 Achievement% 37 Wizard Run 0 Options --------- ASCII 0 Keyboard 0 Movement Mouse Keybinds 0 Fullscreen 2 Font 16/SmallcapsGlow Map View 75x55 Tactical HUD 1 Map Filters NONE Filters NONE Steam 1 RUN: deca7f24-9d64-4f68-b764-f3577654241b